bitfinex/quotes_BTCUSD_20240620
["timestamp","ask_amount","ask_price","bid_price","bid_amount"]
[1718894635118,0.02348074,65038.0,65034.0,0.16087073]
[1718894635309,0.02348074,65037.0,65034.0,0.17487073]
[1718894635626,0.02348074,65036.0,65034.0,0.18487073]
[1718894635831,0.02348074,65035.0,65034.0,0.17487073]
[1718894636358,0.02348074,65035.0,65034.0,0.18787073]
[1718894636563,0.60768074,65035.0,65034.0,0.18787073]
[1718894636765,0.60768074,65035.0,65034.0,0.17387073]
[1718894636976,0.60768074,65035.0,65034.0,0.18687073]
[1718894637177,0.60750635,65035.0,65034.0,0.18687073]
[1718894637617,0.60750635,65035.0,65034.0,0.16087073]
[1718894638028,0.60750635,65035.0,65034.0,0.18887073]
[1718894638255,0.60750635,65035.0,65034.0,0.17487073]
[1718894638667,0.60750635,65035.0,65034.0,0.18887073]
[1718894638816,0.34470635,65035.0,65034.0,0.18887073]
[1718894639029,0.34470635,65035.0,65034.0,0.17487073]
[1718894639432,0.02330635,65035.0,65034.0,0.18587073]
[1718894639650,0.02330635,65037.0,65034.0,0.18587073]
[1718894639846,0.2482,65038.0,65034.0,0.17187073]
[1718894640214,0.2482,65038.0,65034.0,0.18287073]
[1718894640532,0.02323092,65037.0,65034.0,0.18287073]
[1718894640735,0.02323092,65037.0,65034.0,0.17187073]
[1718894641103,0.02323092,65037.0,65034.0,0.17887073]
[1718894641640,0.02323092,65037.0,65034.0,0.16087073]
[1718894642074,0.02323092,65037.0,65034.0,0.17387073]
[1718894642275,0.02323092,65037.0,65034.0,0.16087073]
[1718894642648,0.02398294,65036.0,65034.0,0.16987073]
[1718894643035,0.02398294,65037.0,65034.0,0.16987073]
[1718894643246,0.02398294,65036.0,65034.0,0.17887073]
[1718894643452,0.02398294,65035.0,65034.0,0.43057073]
[1718894643654,0.02398294,65035.0,65034.0,0.42157073]
[1718894643971,0.02398294,65039.0,65034.0,0.42157073]
[1718894644174,0.02398294,65038.0,65034.0,0.43157073]
[1718894644390,0.02398294,65037.0,65034.0,0.43157073]
[1718894644540,0.02398294,65036.0,65034.0,0.42257073]
[1718894644746,0.02398294,65035.0,65034.0,0.41257073]
[1718894644985,0.02398294,65035.0,65034.0,0.43357073]
[1718894645187,0.02398294,65039.0,65034.0,0.43357073]
[1718894645342,0.02456699,65038.0,65034.0,0.42357073]
[1718894645544,0.02456699,65037.0,65034.0,0.42357073]
[1718894645785,0.02456699,65037.0,65034.0,0.43129673]
[1718894646015,0.02456699,65037.0,65034.0,0.42329673]
[1718894646392,0.0461109,65035.0,65034.0,0.42929673]
[1718894646617,0.07067789,65035.0,65034.0,0.41229673]
[1718894647002,0.07067789,65035.0,65034.0,0.42229673]
[1718894647618,0.07067789,65035.0,65034.0,0.41229673]
[1718894648166,0.07029853,65035.0,65034.0,0.41229673]
[1718894648458,0.09338259,65035.0,65034.0,0.43229673]
[1718894648619,0.02413043,65035.0,65034.0,0.43229673]
[1718894649037,0.09340623,65035.0,65034.0,0.42329673]
[1718894649450,0.02413043,65035.0,65034.0,0.45729673]
[1718894649649,0.09340217,65035.0,65034.0,0.45729673]
[1718894650849,0.09448466,65035.0,65034.0,0.45729673]
[1718894653086,0.09448466,65035.0,65034.0,0.43429673]
[1718894653585,0.578,65048.0,65034.0,0.43429673]
[1718894653726,0.0242602,65035.0,65034.0,0.43429673]
[1718894653928,0.09351436,65035.0,65034.0,0.43429673]
[1718894654352,0.0242602,65035.0,65034.0,0.43429673]
[1718894655143,0.0242602,65035.0,65034.0,0.18259673]
[1718894655609,0.09351436,65035.0,65034.0,0.18259673]
[1718894655779,0.11659909,65035.0,65034.0,0.18204886]
[1718894655974,0.13968381,65035.0,65034.0,0.18204886]
[1718894656305,0.13842419,65035.0,65034.0,0.18204886]
[1718894656618,0.02300075,65035.0,65034.0,0.18204886]
[1718894658300,0.02335069,65035.0,65034.0,0.18204886]
[1718894658500,0.13877818,65035.0,65034.0,0.18204886]
[1718894658647,0.13877821,65035.0,65034.0,0.18204886]
[1718894659064,0.2638,65037.0,65034.0,0.18204886]
[1718894659267,0.13847804,65035.0,65034.0,0.18204886]
[1718894659466,0.02305098,65035.0,65034.0,0.18204886]
[1718894660118,0.05136279,65035.0,65034.0,0.18204886]
[1718894660776,0.05136279,65035.0,65034.0,0.17104886]
[1718894661054,0.05136279,65035.0,65034.0,0.18004886]
[1718894661190,0.02305098,65035.0,65034.0,0.18004886]
[1718894661599,0.02305098,65035.0,65034.0,0.17104886]
[1718894661858,0.2585,65036.0,65034.0,0.18204886]
[1718894662214,0.02308892,65035.0,65034.0,0.18204886]
[1718894662840,0.02308892,65035.0,65034.0,0.17104886]
[1718894663048,0.02308892,65035.0,65034.0,0.18104886]
[1718894663422,0.02308892,65035.0,65034.0,0.17104886]
[1718894663631,0.02308892,65035.0,65034.0,0.18204886]
[1718894664042,0.02308892,65035.0,65034.0,0.17104886]
[1718894664446,0.2585,65036.0,65034.0,0.17104886]
[1718894664605,0.02202127,65035.0,65034.0,0.18104886]
[1718894665021,0.02202127,65035.0,65034.0,0.17104886]
[1718894665435,0.09712127,65035.0,65034.0,0.18204886]
[1718894667139,0.0751,65035.0,65034.0,0.18204886]
[1718894667359,0.09652134,65035.0,65034.0,0.18204886]
[1718894669833,0.09464744,65035.0,65034.0,0.18204886]
[1718894672565,0.0751,65035.0,65034.0,0.18204886]
[1718894672786,0.0943388,65035.0,65034.0,0.18204886]
[1718894674006,0.17626602,65035.0,65034.0,0.18204886]
[1718894674263,0.0943388,65035.0,65034.0,0.18204886]
[1718894674466,0.0192388,65035.0,65034.0,0.17319138]
[1718894674602,0.0943388,65035.0,65034.0,0.18204886]
[1718894675205,0.0751,65035.0,65034.0,0.18204886]
[1718894675626,0.0920902,65035.0,65034.0,0.18204886]
[1718894675829,0.0920902,65035.0,65034.0,0.18177486]
[1718894676244,0.80312741,65035.0,65034.0,0.03085748]
[1718894676451,0.80312741,65035.0,65034.0,0.022]
[1718894676452,0.84087192,65035.0,65034.0,0.022]
[1718894677547,0.84087192,65035.0,65034.0,0.011]
[1718894677846,1.03795911,65035.0,65034.0,0.012946]
[1718894678047,1.03795911,65035.0,65034.0,0.001946]
[1718894678249,1.03795911,65035.0,65030.0,0.00018511]
[1718894678250,0.12,65031.0,65030.0,0.00018511]
[1718894678438,0.8832902,65031.0,65030.0,0.00018511]
[1718894678640,0.89125211,65031.0,65030.0,0.00018511]
[1718894678841,0.89125211,65031.0,65008.0,0.51269034]
[1718894678842,0.5712,65030.0,65008.0,0.45769034]
[1718894679046,0.0751,65021.0,65008.0,0.51269034]
[1718894679312,0.1920902,65021.0,65008.0,0.51269034]
[1718894679647,0.1920902,65021.0,65008.0,0.055]
[1718894680524,0.1920902,65021.0,65010.0,0.055]
[1718894680681,0.19353691,65021.0,65010.0,0.055]
[1718894681313,0.33178057,65021.0,65020.0,0.008946]
[1718894681508,0.43888057,65021.0,65020.0,0.008946]
[1718894682291,0.30063691,65021.0,65020.0,0.008946]
[1718894682944,0.30063691,65021.0,65020.0,0.004946]
[1718894683408,0.30063691,65021.0,65003.0,0.247]
[1718894683409,0.045,65012.0,64991.0,0.00920799]
[1718894683605,0.045,65012.0,64994.0,0.0153]
[1718894683606,0.2621,65001.0,64994.0,0.0153]
[1718894683815,0.5752,64994.0,64991.0,0.00920799]
[1718894684005,0.5752,64994.0,64972.0,0.06448199]
[1718894684006,0.2462,64991.0,64972.0,0.00948199]
[1718894684208,0.13820533,64989.0,64974.0,0.7]
[1718894684411,0.06910266,64979.0,64972.0,0.00948199]
[1718894684613,0.01856875,64978.0,64972.0,0.00948199]
[1718894684839,0.1822,64973.0,64972.0,0.00948199]
[1718894685061,0.20076875,64973.0,64972.0,0.00948199]
[1718894686207,0.20438996,64973.0,64972.0,0.00948199]
[1718894687012,0.20438996,64973.0,64972.0,0.01048199]
[1718894687376,0.1822,64973.0,64972.0,0.01048199]
[1718894687621,0.1822,64973.0,64972.0,0.00948199]
[1718894687824,0.1872,64973.0,64972.0,0.00948199]
[1718894688409,0.1822,64973.0,64972.0,0.00948199]
[1718894688610,0.1832,64973.0,64972.0,0.00948199]
[1718894689761,0.2576,64973.0,64972.0,0.00948199]
[1718894690386,0.1832,64973.0,64972.0,0.00948199]
[1718894693278,0.1832,64973.0,64972.0,0.06448199]
[1718894693554,0.1832,64973.0,64972.0,0.00948199]
[1718894694481,0.1832,64973.0,64972.0,0.06448199]
[1718894694929,0.001,64973.0,64972.0,0.79474311]
[1718894695081,0.001,64973.0,64972.0,0.9244076]
[1718894695780,0.3153,64998.0,64986.0,0.01]
[1718894695990,0.3153,64998.0,64990.0,0.055]
[1718894696344,0.3153,64998.0,64991.0,0.01569017]
[1718894696754,0.1822,64992.0,64991.0,0.01569017]
[1718894696950,0.2822,64992.0,64987.0,0.15256112]
[1718894697152,0.2822,64992.0,64988.0,0.01571295]
[1718894697358,0.2822,64992.0,64988.0,0.16827407]
[1718894697583,0.2822,64992.0,64989.0,0.055]
[1718894697965,0.2822,64992.0,64990.0,0.01569776]
[1718894699636,0.31042,64992.0,64990.0,0.01569776]
[1718894699841,0.2822,64992.0,64990.0,0.01569776]
[1718894700009,0.2822,64992.0,64988.0,0.15256112]
[1718894700221,0.2822,64992.0,64989.0,0.006]
[1718894700558,0.2822,64992.0,64989.0,0.055]
[1718894700898,0.2822,64992.0,64990.0,0.006]
[1718894702117,0.3288,65012.0,65003.0,0.15256112]
[1718894702318,0.37968554,65012.0,65003.0,0.16816019]
[1718894702696,0.3288,65012.0,65004.0,0.055]
[1718894702893,0.3288,65012.0,65005.0,0.20756112]
[1718894703112,0.3288,65012.0,65005.0,0.22314501]
[1718894703311,0.3288,65012.0,65005.0,0.16814501]
[1718894703516,0.10916172,65011.0,65005.0,0.01558389]
[1718894703722,0.12653183,65012.0,65005.0,0.01558389]
[1718894703852,0.1,65011.0,64997.0,0.001]
[1718894704062,0.241,65009.0,64994.0,0.055]
[1718894704262,0.241,65009.0,64998.0,0.01563702]
[1718894704486,0.1,65008.0,65005.0,0.002]
[1718894704692,0.01842092,65007.0,65005.0,0.002]
[1718894704894,0.04583558,65006.0,64989.0,0.055]
[1718894705092,0.01842092,65005.0,64990.0,0.15256112]
[1718894705268,0.04583558,65006.0,64997.0,0.004]
[1718894705269,0.01842092,65004.0,64997.0,0.004]
[1718894705471,0.01842092,65003.0,64997.0,0.004]
[1718894705672,0.04857705,65005.0,64997.0,0.004]
[1718894705870,0.04857705,65005.0,64997.0,0.003726]
[1718894706053,0.33288172,65003.0,64997.0,0.003726]
[1718894706260,0.2566,65001.0,64997.0,0.003726]
[1718894706486,0.11794947,65000.0,64997.0,0.003726]
[1718894706663,0.01794947,64999.0,64997.0,0.003726]
[1718894706860,0.34634947,64998.0,64997.0,0.007726]
[1718894707066,0.44634947,64998.0,64997.0,0.004]
[1718894707270,0.44634947,64998.0,64985.0,0.055]
[1718894707627,0.11794947,64997.0,64986.0,0.15256112]
[1718894707834,0.01794947,64996.0,64986.0,0.15256112]
[1718894708183,0.1,64997.0,64986.0,0.15256112]
[1718894708184,0.01794947,64995.0,64987.0,0.01572055]
[1718894708395,0.1,64997.0,64987.0,0.01572055]
[1718894708396,0.2505,64993.0,64987.0,0.01572055]
[1718894708595,0.3208,64992.0,64973.0,0.0306]
[1718894708770,0.3208,64992.0,64973.0,0.0153]
[1718894710010,0.3208,64992.0,64990.0,0.055]
[1718894710011,0.01692381,64991.0,64990.0,0.055]
[1718894710241,0.4208,64992.0,64974.0,0.16838041]
[1718894710411,0.01888469,64991.0,64986.0,0.055]
[1718894710661,0.01888469,64991.0,64990.0,0.055]
[1718894710865,0.02265318,65010.0,65000.0,0.055]
[1718894711069,0.02265318,65010.0,64987.0,0.2515]
[1718894711070,0.57897278,65009.0,65003.0,0.055]
[1718894711284,0.5601,65009.0,65001.0,0.055]
[1718894711490,0.5601,65009.0,65003.0,0.055]
[1718894711690,0.01846899,65008.0,65003.0,0.055]
[1718894712115,0.1822,65004.0,64993.0,0.055]
[1718894712320,0.01846899,65003.0,65000.0,0.001]
[1718894712526,0.0578569,65007.0,64994.0,0.01566739]
[1718894712527,0.07628172,65001.0,64994.0,0.01566739]
[1718894712724,0.60436899,65002.0,64994.0,0.01566739]
[1718894712939,0.11846899,65001.0,64989.0,0.055]
[1718894713140,0.0704369,65000.0,64988.0,0.055]
[1718894713347,0.1822,64989.0,64986.0,0.000946]
[1718894713548,0.4257,64988.0,64986.0,0.000946]
[1718894713968,0.1,64988.0,64987.0,0.055]
[1718894714171,0.1,64988.0,64987.0,0.22756112]
[1718894714375,0.2651,64997.0,64993.0,0.055]
[1718894714581,0.2651,64997.0,64990.0,0.02]
[1718894714582,0.1,64996.0,64994.0,0.055]
[1718894714785,0.11978727,64996.0,64995.0,0.055]
[1718894714994,0.11978426,64996.0,64995.0,0.055]
[1718894715201,0.01978426,64996.0,64995.0,0.075]
[1718894715407,0.1,65002.0,64998.0,0.055]
[1718894715621,0.1,65002.0,65000.0,0.055]
[1718894715834,0.1,65002.0,65001.0,0.055]
[1718894716057,0.12074758,65002.0,65001.0,0.05445213]
[1718894716478,0.02074758,65002.0,65001.0,0.07445213]
[1718894716682,0.12074758,65002.0,65001.0,0.05445213]
[1718894716891,0.12014339,65002.0,65001.0,0.05445213]
[1718894717519,0.12014339,65002.0,64998.0,0.05445213]
[1718894717726,0.02014339,65001.0,64997.0,0.05445213]
[1718894717933,0.02014339,65000.0,64997.0,0.15256112]
[1718894718143,0.02014339,64999.0,64997.0,0.15256112]
[1718894718349,0.02014339,64998.0,64997.0,0.20701325]
[1718894718563,0.1,65003.0,65000.0,0.05445213]
[1718894718772,0.001,65002.0,65001.0,0.05445213]
[1718894718991,0.02089834,65002.0,65000.0,0.05445213]
[1718894719199,0.02089834,65002.0,65001.0,0.07445213]
[1718894719403,0.02089834,65002.0,65001.0,0.07437113]
[1718894719835,0.02113891,65002.0,65001.0,0.22693225]
[1718894720044,0.1,65012.0,65001.0,0.15256112]
[1718894720251,0.1822,65002.0,65001.0,0.20701325]
[1718894720455,0.20333612,65002.0,65001.0,0.20701325]
[1718894720663,0.20333612,65002.0,65001.0,0.2226275]
[1718894721042,0.20333612,65002.0,65001.0,0.01561425]
[1718894721196,0.46253612,65002.0,65001.0,0.01561425]
[1718894721399,0.46253612,65002.0,64997.0,0.05445213]
[1718894721598,0.02113612,65001.0,64996.0,0.05445213]
[1718894721800,0.02113612,65001.0,64997.0,0.05445213]
[1718894722000,0.02113612,65001.0,64998.0,0.01563702]
[1718894722206,0.02113612,65001.0,64999.0,0.05445213]
[1718894722423,0.2602,65002.0,64999.0,0.05445213]
[1718894722687,0.02165505,65001.0,64997.0,0.05445213]
[1718894722868,0.02165505,65001.0,64996.0,0.15256112]
[1718894723078,0.02165505,65001.0,64996.0,0.20701325]
[1718894723635,0.02165505,65001.0,64996.0,0.15256112]
[1718894724260,0.02165505,65001.0,64991.0,0.05445213]
[1718894724261,0.08144055,65001.0,64991.0,0.05445213]
[1718894724475,0.02165505,65000.0,64991.0,0.20701325]
[1718894724650,0.02165505,64999.0,64991.0,0.20701325]
[1718894724851,0.16576406,65000.0,64991.0,0.20701325]
[1718894724852,0.02165505,64998.0,64991.0,0.20701325]
[1718894725054,0.02165505,64997.0,64991.0,0.20701325]
[1718894725364,0.02116037,64996.0,64991.0,0.20701325]
[1718894725565,0.02116037,64995.0,64991.0,0.20701325]
[1718894725766,0.02116037,64994.0,64989.0,0.05445213]
[1718894725967,0.32656037,64993.0,64990.0,0.15228712]
[1718894726168,0.32656037,64993.0,64991.0,0.002]
[1718894726169,0.02116037,64992.0,64991.0,0.002]
[1718894726371,0.2978269,64992.0,64991.0,0.001]
[1718894726570,0.3978269,64992.0,64991.0,0.001]
[1718894727005,0.36996037,64992.0,64991.0,0.001]
[1718894727823,0.3488,64992.0,64991.0,0.001]
[1718894728116,0.36649475,64992.0,64991.0,0.005]
[1718894728300,0.36649475,64992.0,64986.0,0.000946]
[1718894728507,0.01769475,64991.0,64986.0,0.000946]
[1718894728953,0.01769475,64991.0,64989.0,0.006]
[1718894729368,0.01769475,64991.0,64986.0,0.000946]
[1718894729746,0.01769475,64991.0,64989.0,0.05445213]
[1718894729976,0.01769475,64991.0,64988.0,0.05445213]
[1718894730380,0.01769475,64991.0,64987.0,0.05445213]
[1718894730548,0.01769475,64991.0,64986.0,0.000946]
[1718894730752,0.3488,64992.0,64986.0,0.000946]
[1718894730955,0.01797667,64990.0,64986.0,0.05539813]
[1718894731159,0.01797633,64989.0,64986.0,0.000946]
[1718894731365,0.01797633,64988.0,64986.0,0.05539813]
[1718894731536,0.01797633,64987.0,64986.0,0.05539813]
[1718894731740,0.01797633,64987.0,64986.0,0.001946]
[1718894732184,0.60977633,64987.0,64986.0,0.000946]
[1718894732398,0.84227975,64987.0,64986.0,0.004946]
[1718894732624,0.94227975,64987.0,64972.0,0.07918012]
[1718894732823,0.06904027,64985.0,64973.0,0.15256112]
[1718894733033,0.01797633,64984.0,64973.0,0.16838801]
[1718894733243,0.01797633,64983.0,64973.0,0.16838801]
[1718894733438,0.01797633,64982.0,64973.0,0.16838801]
[1718894733665,0.02879663,64981.0,64973.0,0.16838801]
[1718894733882,0.04370563,64981.0,64973.0,0.16838801]
[1718894734086,0.014909,64980.0,64973.0,0.16838801]
[1718894734291,0.014909,64980.0,64975.0,0.05439813]
[1718894734512,0.014909,64980.0,64978.0,0.05439813]
[1718894734715,0.014909,64979.0,64977.0,0.05439813]
[1718894735055,0.1,64983.0,64978.0,0.0157889]
[1718894735275,0.01533688,64982.0,64978.0,0.0157889]
[1718894735589,0.01533688,64981.0,64973.0,0.15256112]
[1718894735763,0.01633688,64980.0,64979.0,0.01578131]
[1718894735968,0.01533688,64980.0,64975.0,0.011]
[1718894736166,0.16907093,64982.0,64975.0,0.011]
[1718894736167,0.01533688,64979.0,64976.0,0.05439813]
[1718894736373,0.06907093,64981.0,64980.0,0.05439813]
[1718894736618,0.01541254,64981.0,64980.0,0.72346112]
[1718894736772,0.01541254,64981.0,64980.0,0.47383296]
[1718894736971,0.01541254,64981.0,64980.0,0.49375196]
[1718894737157,0.001,64983.0,64982.0,0.07431713]
[1718894737520,0.01579857,64983.0,64982.0,0.24263677]
[1718894737895,0.01479857,64983.0,64982.0,0.24263677]
[1718894738524,0.01538986,64985.0,64984.0,0.07431713]
[1718894738740,0.01538963,64985.0,64984.0,0.07431713]
[1718894738942,0.01538963,64985.0,64984.0,0.09006046]
[1718894739252,0.05456279,64985.0,64984.0,0.01574333]
[1718894739391,0.24651672,64985.0,64984.0,0.01574333]
[1718894739590,0.01522958,64985.0,64984.0,0.07014146]
[1718894739789,0.10739483,64985.0,64984.0,0.07014146]
[1718894739995,0.01522958,64985.0,64984.0,0.07014146]
[1718894740228,0.01522958,64985.0,64984.0,0.01574333]
[1718894740378,0.12964856,64985.0,64984.0,0.004]
[1718894740580,0.01522958,64985.0,64984.0,0.01974333]
[1718894741210,0.01522958,64985.0,64984.0,0.02474333]
[1718894741405,0.01522958,64985.0,64984.0,0.09906046]
[1718894741637,0.11522958,64985.0,64984.0,0.09906046]
[1718894741838,0.11522958,64985.0,64984.0,0.07914146]
[1718894741839,0.20741196,64985.0,64984.0,0.07914146]
[1718894742040,0.08436535,64985.0,64984.0,0.79892158]
[1718894742241,0.06913577,64991.0,64989.0,0.32101713]
[1718894742523,0.15544234,65007.0,64989.0,0.32101713]
[1718894742524,0.20732485,64998.0,64997.0,0.07431713]
[1718894742726,0.16131815,65000.0,64997.0,0.22687825]
[1718894742933,0.16131815,65000.0,64999.0,0.07431713]
[1718894743136,0.06913577,65001.0,65000.0,0.05439813]
[1718894743340,0.0822152,65001.0,65000.0,0.22687825]
[1718894743546,0.01307943,65001.0,65000.0,0.49980009]
[1718894743765,0.01307943,65001.0,65000.0,0.24250009]
[1718894745304,0.01407943,65001.0,65000.0,0.24250009]
[1718894745726,0.01407943,65001.0,65000.0,0.22258109]
[1718894745926,0.01407943,65001.0,65000.0,0.24195822]
[1718894748500,0.01407943,65001.0,65000.0,0.56955822]
[1718894749320,0.01307943,65001.0,65000.0,0.56955822]
[1718894749522,0.01307943,65001.0,65000.0,0.57755822]
[1718894749747,0.01407943,65001.0,65000.0,0.58655822]
[1718894750382,0.01407943,65001.0,65000.0,0.57855822]
[1718894750716,0.0146404,65001.0,65000.0,0.59255822]
[1718894751036,0.0136404,65001.0,65000.0,0.58355822]
[1718894751361,0.01364076,65009.0,65008.0,0.05385626]
[1718894751603,0.06215773,65009.0,65005.0,0.05385626]
[1718894751813,0.01356187,65008.0,65006.0,0.20641738]
[1718894752143,0.01356187,65008.0,65007.0,0.05385626]
[1718894752352,0.01356187,65008.0,65006.0,0.22199368]
[1718894752520,0.01356187,65008.0,65007.0,0.01556871]
[1718894752755,0.01356187,65008.0,65007.0,0.06942497]
[1718894752976,0.01356187,65008.0,65006.0,0.15256112]
[1718894753289,0.68941592,65008.0,65007.0,0.01556871]
[1718894753418,0.67345508,65008.0,65007.0,0.01556871]
[1718894753625,0.67343497,65008.0,65006.0,0.009]
[1718894753826,0.58136187,65008.0,65006.0,0.009]
[1718894754131,0.01356187,65007.0,65006.0,0.009]
[1718894754323,0.16225874,65007.0,65006.0,0.009]
[1718894754533,0.09320719,65007.0,65001.0,0.05385626]
[1718894754682,0.08261356,65006.0,65001.0,0.20641738]
[1718894754919,0.01356187,65005.0,65002.0,0.05385626]
[1718894755096,0.01356187,65004.0,65002.0,0.06946292]
[1718894755290,0.06905169,65006.0,65002.0,0.06946292]
[1718894755291,0.01356187,65003.0,65002.0,0.06946292]
[1718894755701,0.01356187,65003.0,65002.0,0.01560666]
[1718894755904,0.01356187,65003.0,65002.0,0.01533279]
[1718894756603,0.0126362,65003.0,65002.0,0.07818905]
[1718894756817,0.0126362,65003.0,65002.0,0.02433279]
[1718894757385,0.0126362,65003.0,65002.0,0.03233279]
[1718894759169,0.0866924,65003.0,65002.0,0.03233279]
[1718894759372,0.0750562,65003.0,65002.0,0.03233279]
[1718894759574,0.08601176,65003.0,65002.0,0.03233279]
[1718894762136,0.08601176,65003.0,65002.0,0.017]
[1718894762539,0.08601176,65003.0,65002.0,0.03256101]
[1718894762942,0.08601176,65003.0,65002.0,0.017]
[1718894764546,0.01195556,65003.0,65002.0,0.017]
[1718894764751,0.01195556,65003.0,65002.0,0.03256101]
[1718894764928,0.01195556,65003.0,65002.0,0.017]
[1718894765341,0.01059198,65003.0,65002.0,0.017]
[1718894765923,0.01059198,65003.0,65002.0,0.016726]
[1718894768000,0.78922708,65003.0,65002.0,0.016726]
[1718894768161,0.57879198,65003.0,65002.0,0.016726]
[1718894768403,0.81691331,65003.0,65002.0,0.016726]
[1718894768573,0.67879385,65003.0,65002.0,0.016726]
[1718894768833,0.67879403,65003.0,65002.0,0.016726]
[1718894769006,0.67879403,65003.0,65002.0,0.008726]
[1718894769306,0.2633,65002.0,64982.0,0.45769034]
[1718894769490,0.06906121,64991.0,64985.0,0.05385626]
[1718894769684,0.00959403,64990.0,64986.0,0.15256112]
[1718894769884,0.00959403,64990.0,64987.0,0.05385626]
[1718894770089,0.00959403,64990.0,64988.0,0.15256112]
[1718894770294,0.00959403,64990.0,64989.0,0.65447526]
[1718894770497,0.11510203,64999.0,64997.0,0.05385626]
[1718894770498,0.09208162,64998.0,64997.0,0.05385626]
[1718894770697,0.11058274,64998.0,64997.0,0.20641738]
[1718894770901,0.01058274,64998.0,64997.0,0.20641738]
[1718894771079,0.11058274,64998.0,64997.0,0.16816009]
[1718894771284,0.11058072,64998.0,64997.0,0.16816009]
[1718894771854,0.11058072,64998.0,64997.0,0.22201635]
[1718894772208,0.01058072,64998.0,64997.0,0.22201635]
[1718894772784,0.01358072,64998.0,64997.0,0.22201635]
[1718894773060,0.01358072,64998.0,64997.0,0.20641738]
[1718894773394,0.01358072,64998.0,64997.0,0.22201635]
[1718894773596,0.01658072,64998.0,64997.0,0.22201635]
[1718894774001,0.01658072,64998.0,64997.0,0.24193535]
[1718894775175,0.01559232,64998.0,64997.0,0.24193535]
[1718894775583,0.01559232,64998.0,64997.0,0.81323535]
[1718894775961,0.01559232,64998.0,64997.0,0.81268748]
[1718894776662,0.01259232,64998.0,64997.0,0.81268748]
[1718894776871,0.01459232,64998.0,64997.0,0.81268748]
[1718894777072,0.01159174,64998.0,64997.0,0.81268748]
[1718894777266,0.01159174,64998.0,64997.0,0.81868748]
[1718894777470,0.06905672,65005.0,65004.0,0.05385626]
[1718894777471,0.06905756,65005.0,65004.0,0.05385626]
[1718894777683,0.06905756,65005.0,65004.0,0.20641738]
[1718894777876,0.07864927,65005.0,65004.0,0.20641738]
[1718894778210,0.07864927,65005.0,65004.0,0.22196321]
[1718894778629,0.1,65006.0,65005.0,0.05385626]
[1718894778768,0.09209173,65007.0,65005.0,0.20641738]
[1718894778972,0.09209173,65007.0,65006.0,0.15256112]
[1718894779176,0.0095917,65007.0,65006.0,0.15256112]
[1718894779412,0.0095917,65007.0,65006.0,0.16809177]
[1718894780046,0.05791051,65007.0,65006.0,0.16809177]
[1718894780541,0.05791036,65007.0,65006.0,0.16809177]
[1718894780910,0.0191831,65007.0,65006.0,0.80286703]
[1718894781091,0.08828433,65007.0,65006.0,0.80286703]
[1718894781490,0.08828433,65007.0,65006.0,0.24186703]
[1718894781848,0.0191831,65007.0,65006.0,0.24186703]
[1718894783605,0.02054399,65007.0,65006.0,0.24186703]
[1718894783720,0.01095244,65007.0,65006.0,0.24186703]
[1718894783919,0.75885244,65007.0,65006.0,0.01553065]
[1718894784122,0.83473768,65007.0,65006.0,0.01553065]
[1718894784324,0.3144,65006.0,64991.0,0.05385626]
[1718894784526,0.16136459,64997.0,64987.0,0.05385626]
[1718894784912,0.09220834,64995.0,64988.0,0.15256112]
[1718894785069,0.06915625,64997.0,64988.0,0.15256112]
[1718894785070,0.09220834,64989.0,64988.0,0.15256112]
[1718894785272,0.11526043,64992.0,64989.0,0.01565971]
[1718894785273,0.5794,64991.0,64989.0,0.01565971]
[1718894785490,0.6794,64991.0,64988.0,0.01566731]
[1718894785673,0.6794,64991.0,64978.0,0.000946]
[1718894785887,0.06917778,64982.0,64979.0,0.15256112]
[1718894786109,0.06917778,64982.0,64979.0,0.16829678]
[1718894786350,0.18449235,64984.0,64979.0,0.16829678]
[1718894786475,0.07878588,64981.0,64979.0,0.16829678]
[1718894786672,0.0095944,64981.0,64980.0,0.05385626]
[1718894786879,0.03823043,64981.0,64980.0,0.05385626]
[1718894787084,0.0095944,64981.0,64980.0,0.06958433]
[1718894787290,0.0095944,64981.0,64980.0,0.01572807]
[1718894787493,0.07878588,64981.0,64980.0,0.01572807]
[1718894787700,0.10184971,64981.0,64979.0,0.15256112]
[1718894787941,0.10184971,64980.0,64979.0,0.15256112]
[1718894788157,0.0095944,64980.0,64979.0,0.15256112]
[1718894788532,0.07876206,64980.0,64979.0,0.20641738]
[1718894788733,0.07876152,64980.0,64979.0,0.20641738]
[1718894788957,0.0095944,64980.0,64979.0,0.15256112]
[1718894789160,0.0095944,64980.0,64979.0,0.20641738]
[1718894789437,0.02749608,64980.0,64978.0,0.000946]
[1718894789603,0.5843944,64979.0,64978.0,0.000946]
[1718894790579,0.65354401,64979.0,64978.0,0.000946]
[1718894790792,0.5843944,64979.0,64978.0,0.000946]
[1718894791187,0.5873944,64979.0,64978.0,0.000946]
[1718894792163,0.5778,64979.0,64978.0,0.000946]
[1718894792406,0.67332766,64979.0,64978.0,0.000946]
[1718894792613,0.68492279,64979.0,64978.0,0.000946]
[1718894792784,0.68492279,64979.0,64978.0,0.22728238]
[1718894792785,0.01459513,64979.0,64978.0,0.22728238]
[1718894792986,0.01459513,64979.0,64978.0,0.48138238]
[1718894793220,0.01459513,64979.0,64978.0,0.79778238]
[1718894793456,0.01459513,64979.0,64978.0,0.000946]
[1718894793672,0.58609513,64979.0,64978.0,0.000946]
[1718894793875,0.68087334,64979.0,64978.0,0.000946]
[1718894794007,0.67787334,64979.0,64978.0,0.000946]
[1718894794432,0.78087334,64979.0,64978.0,0.000946]
[1718894795040,0.11459513,64979.0,64978.0,0.05480226]
[1718894795367,0.11459494,64979.0,64978.0,0.0704307]
[1718894795573,0.11459494,64979.0,64978.0,0.01657444]
[1718894795778,0.01459494,64979.0,64978.0,0.01657444]
[1718894796195,0.01259494,64979.0,64978.0,0.01630057]
[1718894796626,0.01259494,64979.0,64978.0,0.07015683]
[1718894797463,0.01459494,64979.0,64978.0,0.07015683]
[1718894797677,0.01159494,64979.0,64978.0,0.07015683]
[1718894797991,0.01459494,64979.0,64978.0,0.07015683]
[1718894798192,0.47255831,64984.0,64978.0,0.07015683]
[1718894798447,0.40349213,64984.0,64980.0,0.05385626]
[1718894798653,0.06906618,64985.0,64983.0,0.05385626]
[1718894798858,0.02414285,64986.0,64984.0,0.01558287]
[1718894799061,0.02414285,64986.0,64983.0,0.05385626]
[1718894799264,0.02414285,64986.0,64980.0,0.17248012]
[1718894799265,0.02414285,64986.0,64984.0,0.01558287]
[1718894799466,0.02414285,64986.0,64980.0,0.20641738]
[1718894799842,0.02414285,64986.0,64981.0,0.01560565]
[1718894800050,0.02414285,64986.0,64982.0,0.05385626]